bitfinex/quotes_BTCUSD_20241014
["timestamp","ask_amount","ask_price","bid_price","bid_amount"]
[1728906105670,0.006146,65000.0,64999.0,0.153848]
[1728906105939,0.006146,65000.0,64999.0,0.31045309]
[1728906106195,0.006146,65000.0,64999.0,0.31888523]
[1728906108728,0.006146,65000.0,64999.0,0.33288523]
[1728906109152,0.006146,65000.0,64999.0,0.34688523]
[1728906109408,0.006146,65000.0,64999.0,0.52007218]
[1728906109677,0.006146,65000.0,64999.0,0.34688523]
[1728906110139,0.006146,65000.0,64999.0,0.34687765]
[1728906111091,0.006146,65000.0,64999.0,0.5200646]
[1728906111326,0.006146,65000.0,64999.0,0.8340023]
[1728906111768,0.006146,65000.0,64999.0,0.8360023]
[1728906112008,0.006146,65000.0,64999.0,0.7979646]
[1728906112712,0.006146,65000.0,64999.0,0.7959646]
[1728906113871,0.006146,65000.0,64999.0,0.93395656]
[1728906114096,0.23021562,65005.0,65004.0,0.153836]
[1728906114320,0.23021562,65005.0,65004.0,0.4920526]
[1728906115012,0.23046962,65013.0,65007.0,0.307656]
[1728906115257,0.23046962,65013.0,65010.0,0.04599369]
[1728906115470,0.38428462,65013.0,65011.0,0.15352847]
[1728906115911,0.23046962,65013.0,65011.0,0.15352847]
[1728906116135,0.160461,65014.0,65011.0,0.15352847]
[1728906116799,0.160461,65014.0,65011.0,0.16152847]
[1728906117247,0.160461,65014.0,65011.0,0.15352847]
[1728906117248,0.006648,65014.0,65011.0,0.15352847]
[1728906117510,0.006648,65014.0,65012.0,0.153816]
[1728906117746,0.006648,65014.0,65013.0,0.153815]
[1728906118439,0.006648,65014.0,65012.0,0.30734547]
[1728906118920,0.006648,65014.0,65012.0,0.32134547]
[1728906119156,0.006648,65014.0,65012.0,0.31434547]
[1728906119380,0.006648,65014.0,65013.0,0.014]
[1728906119613,0.006648,65014.0,65012.0,0.31434547]
[1728906120086,0.006648,65014.0,65012.0,0.16052847]
[1728906120340,0.23046962,65013.0,65012.0,0.15352847]
[1728906120569,0.006648,65014.0,65013.0,0.007]
[1728906121752,0.006648,65014.0,65013.0,0.021]
[1728906122192,0.006648,65014.0,65013.0,0.167815]
[1728906122670,0.006648,65014.0,65013.0,0.014]
[1728906122906,0.001648,65014.0,65013.0,0.32134347]
[1728906123387,0.001648,65014.0,65013.0,0.49453042]
[1728906123625,0.001648,65014.0,65013.0,0.5405062]
[1728906123845,0.001648,65014.0,65013.0,0.50153042]
[1728906124076,0.001648,65014.0,65013.0,0.56544842]
[1728906124299,0.001648,65014.0,65013.0,0.48753042]
[1728906124513,0.001648,65014.0,65013.0,0.57044862]
[1728906124745,0.001648,65014.0,65013.0,0.48753042]
[1728906124973,0.001648,65014.0,65013.0,0.55644862]
[1728906125218,0.001648,65014.0,65013.0,0.49453042]
[1728906125450,0.001648,65014.0,65013.0,0.60946987]
[1728906125675,0.001648,65014.0,65013.0,0.59921214]
[1728906125903,0.001648,65014.0,65013.0,0.69921214]
[1728906126144,0.001648,65014.0,65013.0,0.82293653]
[1728906126419,0.001648,65014.0,65013.0,0.97649909]
[1728906126633,0.001648,65014.0,65013.0,0.86509727]
[1728906127121,0.001648,65014.0,65013.0,1.03828422]
[1728906127352,0.001648,65014.0,65013.0,0.99049909]
[1728906127795,0.001648,65014.0,65013.0,0.86507319]
[1728906128011,0.001648,65014.0,65013.0,0.81731214]
[1728906129212,0.001648,65014.0,65013.0,0.94086494]
[1728906129438,0.001648,65014.0,65013.0,0.95486494]
[1728906130124,0.001648,65014.0,65013.0,0.81731214]
[1728906130637,0.001648,65014.0,65013.0,0.80331214]
[1728906130869,0.001648,65014.0,65013.0,0.81731214]
[1728906131785,0.001648,65014.0,65013.0,0.80583042]
[1728906132008,0.001648,65014.0,65013.0,0.81728313]
[1728906132897,0.001648,65014.0,65013.0,0.99047008]
[1728906134014,0.001646,65016.0,65013.0,0.83465508]
[1728906134241,0.001646,65016.0,65015.0,0.60313847]
[1728906134463,0.001648,65018.0,65017.0,0.255805]
[1728906134690,0.001648,65018.0,65017.0,0.96362229]
[1728906134897,0.001648,65018.0,65017.0,0.96096008]
[1728906135121,0.001648,65018.0,65017.0,0.95896008]
[1728906135341,0.001648,65018.0,65017.0,0.96096008]
[1728906135569,0.001648,65018.0,65017.0,0.95896008]
[1728906135781,0.001648,65018.0,65017.0,0.90021129]
[1728906135994,0.001648,65018.0,65017.0,0.91621129]
[1728906136206,0.001648,65018.0,65017.0,0.80177313]
[1728906136424,0.001648,65018.0,65017.0,0.79977313]
[1728906137103,0.001648,65018.0,65017.0,0.8912849]
[1728906137324,0.001648,65018.0,65017.0,0.70697313]
[1728906137748,0.001648,65018.0,65017.0,0.78960567]
[1728906138097,0.001648,65018.0,65017.0,0.76160567]
[1728906138299,0.001648,65018.0,65017.0,0.6998626]
[1728906138628,0.001648,65018.0,65017.0,0.5008626]
[1728906138629,0.005648,65018.0,65017.0,0.5008626]
[1728906138838,0.005648,65018.0,65017.0,0.6546676]
[1728906139898,0.005648,65018.0,65017.0,0.64321489]
[1728906140122,0.005648,65018.0,65017.0,0.65467287]
[1728906141658,0.32056962,65033.0,65017.0,0.65467287]
[1728906141659,0.44160464,65041.0,65040.0,0.153751]
[1728906141895,0.23046962,65050.0,65042.0,0.176746]
[1728906141896,0.23046962,65043.0,65042.0,0.176746]
[1728906142125,0.23046962,65043.0,65042.0,0.44993295]
[1728906142350,0.23046962,65043.0,65042.0,0.46139093]
[1728906142557,0.23046962,65043.0,65042.0,0.276746]
[1728906142764,0.23046962,65050.0,65049.0,0.15373]
[1728906142982,0.23211562,65058.0,65057.0,0.153711]
[1728906143231,0.23211562,65058.0,65057.0,0.30723947]
[1728906143855,0.001646,65058.0,65057.0,0.30723947]
[1728906145693,0.001646,65058.0,65057.0,0.31723947]
[1728906146545,0.001646,65058.0,65057.0,0.33123947]
[1728906149115,0.001646,65058.0,65057.0,0.17752847]
[1728906149823,0.001646,65058.0,65057.0,0.33123947]
[1728906150774,0.001646,65058.0,65057.0,0.17752847]
[1728906151025,0.001646,65058.0,65057.0,0.33123947]
[1728906151711,0.001646,65058.0,65057.0,0.17752847]
[1728906152238,0.001646,65058.0,65057.0,0.33123947]
[1728906152722,0.001646,65058.0,65057.0,0.17752847]
[1728906153439,0.160354,65058.0,65057.0,0.024]
[1728906154634,0.160354,65058.0,65057.0,0.01]
[1728906155086,0.239854,65058.0,65057.0,0.014]
[1728906155349,0.336354,65058.0,65057.0,0.014]
[1728906155578,0.336354,65058.0,65057.0,0.021]
[1728906156052,0.336354,65058.0,65057.0,0.014]
[1728906156541,0.441354,65058.0,65057.0,0.006]
[1728906156544,0.158739,65045.0,65044.0,0.0009865]
[1728906157006,0.158739,65045.0,65030.0,0.307549]
[1728906157007,0.158746,65042.0,65030.0,0.307549]
[1728906157225,0.158746,65042.0,65034.0,0.153763]
[1728906157450,0.158746,65042.0,65036.0,0.15376]
[1728906158531,0.158746,65042.0,65037.0,0.153757]
[1728906158965,0.158746,65042.0,65041.0,0.010823]
[1728906159609,0.158746,65042.0,65041.0,0.011823]
[1728906167248,0.56611562,65042.0,65041.0,0.011823]
[1728906167462,0.434746,65042.0,65041.0,0.011823]
[1728906168424,0.439746,65042.0,65041.0,0.011823]
[1728906169376,0.439746,65042.0,65041.0,0.000823]
[1728906169629,0.439746,65042.0,65041.0,0.004823]
[1728906170819,0.442746,65042.0,65041.0,0.004823]
[1728906173600,0.84974409,65042.0,65041.0,0.004823]
[1728906173820,0.61927447,65042.0,65041.0,0.004823]
[1728906174964,0.61627447,65042.0,65041.0,0.000823]
[1728906175433,0.62427447,65042.0,65041.0,0.001823]
[1728906175643,0.6283512,65042.0,65041.0,0.001823]
[1728906175842,0.6253512,65042.0,65041.0,0.000823]
[1728906176051,0.6253512,65042.0,65041.0,0.001823]
[1728906176264,0.6313512,65042.0,65041.0,0.001823]
[1728906176932,0.6083512,65042.0,65041.0,0.001823]
[1728906177170,0.45482273,65042.0,65041.0,0.001823]
[1728906177629,0.448746,65042.0,65041.0,0.001823]
[1728906178280,0.442746,65042.0,65041.0,0.000823]
[1728906178716,0.448746,65042.0,65041.0,0.001823]
[1728906178944,0.450746,65042.0,65041.0,0.001823]
[1728906185744,0.169746,65042.0,65041.0,0.001823]
[1728906187508,0.269746,65042.0,65041.0,0.001823]
[1728906188952,0.169746,65042.0,65041.0,0.001823]
[1728906189197,0.011,65042.0,65041.0,0.48228742]
[1728906189667,0.011,65042.0,65041.0,0.56308742]
[1728906189669,0.011,65042.0,65041.0,0.57457025]
[1728906190414,0.011,65042.0,65041.0,0.66527025]
[1728906190640,0.011,65042.0,65041.0,0.65378742]
[1728906190871,0.23046962,65047.0,65046.0,0.153737]
[1728906191114,0.23046962,65047.0,65046.0,0.30726547]
[1728906191339,0.001646,65057.0,65047.0,0.0792]
[1728906191595,0.155358,65057.0,65054.0,0.32690495]
[1728906191837,0.155358,65057.0,65054.0,0.48043342]
[1728906192075,0.155358,65057.0,65054.0,0.49099088]
[1728906192318,0.001646,65057.0,65054.0,0.33727288]
[1728906192554,0.153714,65056.0,65055.0,0.15352847]
[1728906192790,0.153714,65056.0,65055.0,0.16407119]
[1728906193026,0.38418362,65056.0,65055.0,0.16407119]
[1728906193270,0.153714,65056.0,65055.0,0.16407119]
[1728906193735,0.153714,65056.0,65055.0,0.15352847]
[1728906193970,0.153714,65056.0,65055.0,0.16407119]
[1728906194718,0.153714,65056.0,65055.0,0.17707119]
[1728906194966,0.30907,65057.0,65055.0,0.18207119]
[1728906194967,0.001646,65057.0,65055.0,0.18207119]
[1728906195224,0.153713,65056.0,65055.0,0.02854272]
[1728906195450,0.158713,65056.0,65055.0,0.02854272]
[1728906196106,0.158713,65056.0,65055.0,0.01554272]
[1728906196756,0.158713,65056.0,65055.0,0.01054272]
[1728906197226,0.158713,65056.0,65055.0,0.01454272]
[1728906197472,0.158713,65056.0,65055.0,0.004]
[1728906197707,0.158713,65056.0,65055.0,0.01054272]
[1728906197938,0.158713,65056.0,65055.0,0.017]
[1728906198162,0.158713,65056.0,65055.0,0.01554272]
[1728906198629,0.158713,65056.0,65055.0,0.02854272]
[1728906199547,0.38918262,65056.0,65055.0,0.018]
[1728906199794,0.38918262,65056.0,65055.0,0.02854272]
[1728906200037,0.67555573,65056.0,65055.0,0.018]
[1728906200254,0.44508611,65056.0,65055.0,0.018]
[1728906200708,0.44508611,65056.0,65055.0,0.013]
[1728906201146,0.158746,65042.0,65041.0,0.001811]
[1728906201595,0.158746,65042.0,65041.0,0.000823]
[1728906202549,0.57051562,65042.0,65041.0,0.02457206]
[1728906202768,0.57051562,65042.0,65041.0,0.013823]
[1728906202998,0.340046,65042.0,65041.0,0.013823]
[1728906203451,0.345046,65042.0,65041.0,0.013823]
[1728906204102,0.345046,65042.0,65041.0,0.005823]
[1728906204319,0.34436783,65042.0,65041.0,0.008823]
[1728906204748,0.34436783,65042.0,65041.0,0.003823]
[1728906204989,0.35136783,65042.0,65041.0,0.004823]
[1728906205223,0.80816592,65042.0,65041.0,0.001823]
[1728906205451,0.5298963,65042.0,65041.0,0.001823]
[1728906206355,0.53594258,65042.0,65041.0,0.001823]
[1728906207052,0.53794258,65042.0,65041.0,0.001823]
[1728906207999,0.62974258,65042.0,65041.0,0.001823]
[1728906208214,1.32652358,65042.0,65041.0,0.001823]
[1728906208441,1.29270358,65042.0,65041.0,0.001823]
[1728906208683,1.19906358,65042.0,65041.0,0.001823]
[1728906208899,0.62774258,65042.0,65041.0,0.001823]
[1728906209128,0.62274258,65042.0,65041.0,0.000823]
[1728906209350,0.62074258,65042.0,65041.0,0.000823]
[1728906209570,0.63274258,65042.0,65041.0,0.001823]
[1728906210710,0.63074258,65042.0,65041.0,0.001823]
[1728906211144,0.63474258,65042.0,65041.0,0.001823]
[1728906213897,0.63674258,65042.0,65041.0,0.001823]
[1728906214622,0.63474258,65042.0,65041.0,0.001823]
[1728906224114,0.63674258,65042.0,65041.0,0.001823]
[1728906224568,0.63838858,65042.0,65041.0,0.001823]
[1728906226230,0.28176011,65042.0,65041.0,0.001823]
[1728906226516,0.17571383,65042.0,65041.0,0.001823]
[1728906226796,0.02196783,65042.0,65041.0,0.155572]
[1728906227042,0.02196783,65042.0,65041.0,0.16632106]
[1728906227043,0.017646,65042.0,65041.0,0.16632106]
[1728906227259,0.16371383,65042.0,65041.0,0.01157206]
[1728906227504,0.15971383,65042.0,65041.0,0.01157206]
[1728906227723,0.17071383,65042.0,65041.0,0.01157206]
[1728906227957,0.17471383,65042.0,65041.0,0.000823]
[1728906228174,0.17071383,65042.0,65041.0,0.000823]
[1728906228399,0.17171383,65042.0,65041.0,0.014823]
[1728906229086,0.16071383,65042.0,65041.0,0.014823]
[1728906229324,0.16171383,65042.0,65041.0,0.019823]
[1728906229757,0.16171383,65042.0,65041.0,0.014823]
[1728906229758,0.16071383,65042.0,65041.0,0.014823]
[1728906229967,0.16071383,65042.0,65041.0,0.000823]
[1728906230179,0.15971383,65042.0,65041.0,0.001823]
[1728906230394,0.16071383,65042.0,65041.0,0.011823]
[1728906230664,0.26071383,65042.0,65041.0,0.000823]
[1728906230882,0.26771383,65042.0,65041.0,0.000823]
[1728906231101,0.26771383,65042.0,65041.0,0.005823]
[1728906231757,0.26671383,65042.0,65041.0,0.000823]
[1728906232196,0.26871383,65042.0,65041.0,0.000823]
[1728906232424,0.27071383,65042.0,65041.0,0.000823]
[1728906232627,0.27571383,65042.0,65041.0,0.000823]
[1728906232847,0.26871383,65042.0,65041.0,0.000823]
[1728906233348,0.27871383,65042.0,65041.0,0.000823]
[1728906233557,0.27471383,65042.0,65041.0,0.000823]
[1728906233989,0.27771383,65042.0,65041.0,0.000823]
[1728906234201,0.27971383,65042.0,65041.0,0.000823]
[1728906235294,0.4332423,65042.0,65041.0,0.000823]
[1728906235505,0.5488423,65042.0,65041.0,0.000823]
[1728906236179,0.00432183,65029.0,65028.0,0.0009809]
[1728906236377,0.15809883,65029.0,65028.0,0.0009809]
[1728906236597,0.007,65035.0,65016.0,0.0773]
[1728906236598,0.153805,65017.0,65016.0,0.0773]
[1728906236845,0.153805,65017.0,65016.0,0.08841774]
[1728906238030,0.153805,65017.0,65016.0,0.0913]
[1728906238253,0.154805,65017.0,65016.0,0.10241774]
[1728906238480,0.154805,65017.0,65016.0,0.0913]
[1728906239177,0.154805,65017.0,65016.0,0.10241774]
[1728906239398,0.001,65017.0,65016.0,0.10241774]
[1728906239632,0.001,65017.0,65016.0,0.25594621]
[1728906239881,0.002,65017.0,65016.0,0.40975421]
[1728906240136,0.002,65017.0,65016.0,0.50655421]
[1728906241067,0.002,65017.0,65016.0,0.55241942]
[1728906241322,0.002,65017.0,65016.0,0.50655421]
[1728906242016,0.002,65017.0,65016.0,0.57535587]
[1728906242258,0.002,65017.0,65016.0,0.50655421]
[1728906242463,0.002,65017.0,65016.0,0.35274621]
[1728906243135,0.002,65017.0,65016.0,0.50655421]
[1728906244046,0.002,65017.0,65016.0,0.35274621]
[1728906244298,0.002,65017.0,65016.0,0.50655421]
[1728906246821,0.002,65017.0,65016.0,0.50737721]
[1728906249388,0.002,65017.0,65016.0,0.55325133]
[1728906250097,0.002,65017.0,65016.0,0.50737721]
[1728906250323,0.002,65017.0,65016.0,0.55325133]
[1728906250747,0.002,65017.0,65016.0,0.35356921]
[1728906254787,0.002,65017.0,65016.0,0.39958031]
[1728906255488,0.002,65017.0,65016.0,0.35356921]
[1728906255717,0.002,65017.0,65016.0,0.50737721]
[1728906256200,0.002,65017.0,65016.0,0.35356921]
[1728906256415,0.002,65017.0,65016.0,0.39957348]
[1728906256669,0.002,65017.0,65016.0,0.35356921]
[1728906257333,0.002,65017.0,65016.0,0.24604692]
[1728906257560,0.155805,65017.0,65016.0,0.02594074]
[1728906257811,0.002,65017.0,65016.0,0.02594074]
[1728906258247,0.155805,65017.0,65016.0,0.02594074]
[1728906258469,0.002,65017.0,65016.0,0.02594074]
[1728906258733,0.16012683,65017.0,65016.0,0.02594074]
[1728906259211,0.26012683,65017.0,65016.0,0.014823]
[1728906259436,0.34232683,65017.0,65016.0,0.014823]
[1728906259649,0.35233778,65017.0,65016.0,0.014823]
[1728906260107,0.53486625,65017.0,65016.0,0.014823]
[1728906260337,0.63196625,65017.0,65016.0,0.000823]
[1728906260818,0.63196625,65017.0,65016.0,0.001823]
[1728906261046,0.63196625,65017.0,65016.0,0.000823]
[1728906261277,0.63796625,65017.0,65016.0,0.001823]
[1728906261714,0.63196625,65017.0,65016.0,0.000823]
[1728906261964,0.62596625,65017.0,65016.0,0.000823]
[1728906262169,0.64396625,65017.0,65016.0,0.001823]
[1728906262605,0.63396625,65017.0,65016.0,0.001823]
[1728906263105,0.64796625,65017.0,65016.0,0.001823]
[1728906263978,0.64996625,65017.0,65016.0,0.001823]
[1728906264206,0.64796625,65017.0,65016.0,0.001823]
[1728906264490,0.64996625,65017.0,65016.0,0.001823]
[1728906265644,1.75360225,65017.0,65016.0,0.001823]
[1728906267044,1.49138825,65017.0,65016.0,0.001823]
[1728906267895,1.44158825,65017.0,65016.0,0.001823]
[1728906268137,1.30838825,65017.0,65016.0,0.001823]
[1728906268386,1.30638825,65017.0,65016.0,0.001823]
[1728906268814,0.64796625,65017.0,65016.0,0.001823]
[1728906270577,0.65412725,65017.0,65016.0,0.001823]
[1728906271877,0.65612725,65017.0,65016.0,0.001823]
[1728906272545,0.65412725,65017.0,65016.0,0.001823]
[1728906272758,0.80976776,65017.0,65016.0,0.001823]
[1728906273208,0.65612725,65017.0,65016.0,0.001823]
[1728906274152,0.65412725,65017.0,65016.0,0.001823]
[1728906274372,0.65612725,65017.0,65016.0,0.001823]
[1728906275046,0.65612725,65017.0,65015.0,0.000823]
[1728906275047,0.13432183,65016.0,65015.0,0.000823]
[1728906275265,0.4416583,65016.0,65015.0,0.000823]
[1728906276660,0.4556583,65016.0,65015.0,0.000823]
[1728906277108,0.4626583,65016.0,65015.0,0.001823]
[1728906277793,0.03232183,65006.0,65005.0,0.000824]
[1728906278016,0.4416813,65006.0,65005.0,0.000824]
[1728906278236,0.4396813,65006.0,65005.0,0.000824]
[1728906278455,0.4416813,65006.0,65005.0,0.000824]
[1728906279857,0.4556813,65006.0,65005.0,0.000824]
[1728906280775,0.5506813,65006.0,65005.0,0.000824]
[1728906281013,0.5576813,65006.0,65005.0,0.001824]
[1728906285519,0.56360639,65006.0,65005.0,0.001824]
[1728906285733,1.15736139,65006.0,65005.0,0.001824]
[1728906286239,1.12862539,65006.0,65005.0,0.001824]
[1728906286959,1.12862539,65006.0,64994.0,0.000823]
[1728906286960,0.28617883,64995.0,64994.0,0.000823]
[1728906287196,0.4397073,64995.0,64994.0,0.000823]
[1728906287449,0.4397073,64995.0,64994.0,0.01226542]
[1728906287689,0.4417073,64995.0,64994.0,0.000823]
[1728906287911,0.4417073,64995.0,64994.0,0.01226542]
[1728906288150,0.5179073,64995.0,64994.0,0.000823]
[1728906288360,0.5209073,64995.0,64994.0,0.01226542]
[1728906288582,0.5209073,64995.0,64994.0,0.000823]
[1728906288809,0.5189073,64995.0,64994.0,0.01245128]
[1728906289048,0.5189073,64995.0,64994.0,0.004823]
[1728906289267,0.6111073,64995.0,64994.0,0.004823]
[1728906289511,0.5189073,64995.0,64994.0,0.004823]
[1728906289731,0.5209073,64995.0,64994.0,0.004823]
[1728906290161,0.5179073,64995.0,64994.0,0.004823]
[1728906290823,0.5179073,64995.0,64994.0,0.000823]
[1728906291041,0.5199073,64995.0,64994.0,0.000823]
[1728906291493,0.5309073,64995.0,64994.0,0.000823]
[1728906291722,0.46060983,64995.0,64994.0,0.000823]
[1728906291944,0.27317883,64995.0,64994.0,0.000823]
[1728906292173,0.27817883,64995.0,64994.0,0.000823]
[1728906292667,0.17317883,64995.0,64994.0,0.079223]
[1728906293813,0.27317883,64995.0,64994.0,0.079223]
[1728906294274,0.27317883,64995.0,64994.0,0.09066542]
[1728906294504,0.27317883,64995.0,64994.0,0.079223]
[1728906294950,0.27317883,64995.0,64994.0,0.09066542]
[1728906295426,0.26917883,64995.0,64994.0,0.079223]
[1728906295669,0.25817883,64995.0,64994.0,0.083223]
[1728906295888,0.26117883,64995.0,64994.0,0.083223]
[1728906296332,0.25817883,64995.0,64994.0,0.083223]
[1728906296775,0.25817883,64995.0,64994.0,0.079223]
[1728906297212,0.25917883,64995.0,64994.0,0.085223]
[1728906297660,0.26017883,64995.0,64994.0,0.085223]
[1728906300190,0.10632183,64995.0,64994.0,0.085223]
[1728906300468,0.002,64995.0,64994.0,0.335483]
[1728906300692,0.002,64995.0,64994.0,0.181623]
[1728906300932,0.002,64995.0,64994.0,0.50045389]
[1728906301403,0.23479145,65000.0,64994.0,0.34059389]
[1728906301404,0.23046962,65000.0,64994.0,0.34059389]
[1728906301635,0.23046962,65000.0,64999.0,0.323648]
[1728906302090,0.23046962,65000.0,64999.0,0.33501661]
[1728906302336,0.38431562,65000.0,64999.0,0.18116861]
[1728906302554,0.153846,65000.0,64999.0,0.18116861]
[1728906302830,0.15816483,65002.0,64999.0,0.18116861]
[1728906303038,0.15816283,65002.0,64999.0,0.18116861]
[1728906303261,0.00432183,65002.0,64999.0,0.18116861]
[1728906303488,0.15816383,65002.0,64999.0,0.18116861]
[1728906303924,0.00432183,65002.0,64999.0,0.18116861]
[1728906304145,0.15816483,65002.0,64999.0,0.18116861]
[1728906304384,0.00432183,65002.0,64999.0,0.18116861]
[1728906304604,0.00432183,65002.0,65000.0,0.153846]
[1728906304846,0.00432183,65002.0,64999.0,0.34501661]
[1728906305087,0.15816283,65002.0,65001.0,0.01133909]
[1728906305340,0.15816283,65002.0,64999.0,0.1788]
[1728906305341,0.15816483,65001.0,65000.0,0.01135385]
[1728906305568,0.15816783,65000.0,64999.0,0.001]
[1728906305813,0.25816783,65000.0,64999.0,0.001]
[1728906306021,0.25816783,65000.0,64994.0,0.000823]
[1728906306022,0.153857,64995.0,64994.0,0.000823]
[1728906306476,0.15817883,64995.0,64994.0,0.000823]
[1728906307614,0.25817883,64995.0,64994.0,0.000823]
[1728906308327,0.26017883,64995.0,64994.0,0.015823]
[1728906308565,0.26017883,64995.0,64994.0,0.001823]
[1728906309023,0.26517883,64995.0,64994.0,0.014823]
[1728906309273,0.26517883,64995.0,64994.0,0.000823]
[1728906309274,0.26317883,64995.0,64994.0,0.000823]
[1728906309532,0.26417883,64995.0,64994.0,0.001823]
[1728906310740,0.26517883,64995.0,64994.0,0.008823]
[1728906310955,0.26417883,64995.0,64994.0,0.008823]
[1728906311176,0.26417883,64995.0,64994.0,0.009823]
[1728906311625,0.4177073,64995.0,64994.0,0.009823]
[1728906314870,0.25917883,64995.0,64994.0,0.009823]
[1728906316037,0.001,64995.0,64994.0,0.17512542]
[1728906316305,0.001,64995.0,64994.0,0.49231147]
[1728906316522,0.001,64995.0,64994.0,0.50375389]
[1728906316748,0.001,64995.0,64994.0,0.59586779]
[1728906316974,0.001648,65005.0,65004.0,0.153836]
[1728906317193,0.001648,65005.0,65004.0,0.328936]
[1728906317417,0.001648,65005.0,65004.0,0.18331798]
[1728906318199,0.001648,65005.0,65004.0,0.33715398]
[1728906318302,0.001648,65005.0,65004.0,0.18331798]
[1728906318549,0.002648,65005.0,65004.0,0.35115398]
[1728906318766,0.002648,65005.0,65004.0,0.19731798]
[1728906318988,0.157482,65005.0,65004.0,0.19831798]
[1728906319219,0.16180383,65005.0,65004.0,0.02321798]
[1728906319708,0.16180383,65005.0,65004.0,0.015]
[1728906320651,0.003648,65005.0,65004.0,0.02321798]
[1728906320880,0.003648,65005.0,65004.0,0.67125142]
[1728906321365,0.003648,65005.0,65004.0,0.6794694]
[1728906321588,0.003648,65005.0,65004.0,0.7254251]
[1728906321812,0.003648,65005.0,65004.0,0.6794694]
[1728906322528,0.003648,65005.0,65004.0,0.72540307]
[1728906322770,0.003648,65005.0,65004.0,0.74837017]
[1728906323498,0.012948,65005.0,65004.0,0.6784694]
[1728906323752,0.011948,65005.0,65004.0,0.6644694]
[1728906323974,0.012948,65005.0,65004.0,0.6664694]
[1728906324218,0.012948,65005.0,65004.0,0.72638496]
[1728906324459,0.012948,65005.0,65004.0,0.71238496]
[1728906324702,0.012948,65005.0,65004.0,0.72638496]
[1728906324925,0.011948,65005.0,65004.0,0.72438496]
[1728906325389,0.011948,65005.0,65004.0,0.6784694]
[1728906326355,0.012948,65005.0,65004.0,0.6924694]
[1728906329472,0.012948,65005.0,65004.0,0.51928245]
[1728906329687,0.012948,65005.0,65004.0,0.18974645]
[1728906330154,0.012948,65005.0,65004.0,0.34358245]
[1728906337108,0.012948,65005.0,65002.0,0.307681]
[1728906337339,0.012948,65005.0,65004.0,0.153836]
[1728906337861,0.012948,65005.0,65004.0,0.16410848]
[1728906338081,0.011948,65005.0,65004.0,0.16410848]
[1728906338297,0.011948,65005.0,65004.0,0.01027248]
[1728906338520,0.011948,65005.0,65004.0,0.16410848]
[1728906338741,0.011948,65005.0,65004.0,0.01027248]
[1728906339227,0.011948,65005.0,65004.0,0.014]
[1728906339456,0.011948,65005.0,65004.0,0.02427248]
[1728906339680,0.012948,65005.0,65004.0,0.02427248]
[1728906340154,0.011948,65005.0,65004.0,0.02427248]
[1728906340826,0.012948,65005.0,65004.0,0.02427248]
[1728906341059,0.012948,65005.0,65004.0,0.17810848]
[1728906342225,0.012948,65005.0,65004.0,0.17893248]
[1728906349518,0.011948,65005.0,65004.0,0.17893248]
[1728906349735,0.012948,65005.0,65004.0,0.17893248]
[1728906350393,0.011948,65005.0,65004.0,0.17893248]
[1728906350617,0.012948,65005.0,65004.0,0.17893248]
[1728906350854,0.012948,65005.0,65004.0,0.16493248]
[1728906351070,0.013948,65005.0,65004.0,0.17893248]
[1728906354087,0.013948,65005.0,65004.0,0.33246095]
[1728906354542,0.013948,65005.0,65004.0,0.51056095]
[1728906354758,0.013948,65005.0,65004.0,0.51123912]
[1728906355888,0.013948,65005.0,65004.0,0.58008673]
[1728906356344,0.013948,65005.0,65004.0,0.51123912]
[1728906356580,0.013948,65005.0,65004.0,0.60303593]
[1728906356819,0.013948,65005.0,65004.0,0.62598513]
[1728906357158,0.013948,65005.0,65004.0,0.55922014]
[1728906357392,0.013948,65005.0,65004.0,0.62602532]
[1728906357633,0.013948,65005.0,65004.0,0.51123912]
[1728906358292,0.013948,65005.0,65004.0,0.51726105]
[1728906358509,0.013948,65005.0,65004.0,0.63208728]
[1728906358727,0.013948,65005.0,65004.0,0.51726105]
[1728906360744,0.013948,65005.0,65004.0,0.02509648]
[1728906361026,0.013948,65005.0,65004.0,0.17893248]
[1728906361249,0.013948,65005.0,65004.0,0.02509648]
[1728906361487,0.013948,65005.0,65004.0,0.22493477]
[1728906361718,0.013948,65005.0,65004.0,0.17893248]
[1728906362419,0.013948,65005.0,65004.0,0.42754202]
[1728906362674,0.013948,65005.0,65004.0,0.40993912]
[1728906362882,0.013948,65005.0,65004.0,0.50463912]
[1728906363314,0.013948,65005.0,65004.0,0.64464599]
[1728906363554,0.013948,65005.0,65004.0,0.60663912]
[1728906364450,0.013948,65005.0,65004.0,0.60463912]
[1728906365157,0.013948,65005.0,65004.0,0.60663912]
[1728906365392,0.013948,65005.0,65004.0,0.60463912]
[1728906365612,0.013948,65005.0,65004.0,0.77782607]
[1728906365834,0.013948,65005.0,65004.0,0.77982607]
[1728906366311,0.013948,65005.0,65004.0,0.9178049]
[1728906367405,0.013948,65005.0,65004.0,0.77982607]
[1728906367648,0.013948,65005.0,65004.0,0.91781386]
[1728906369006,0.013948,65005.0,65004.0,0.77982607]
[1728906370599,0.013948,65005.0,65004.0,0.80282607]
[1728906371926,0.012948,65005.0,65004.0,0.78882607]
[1728906372133,0.012948,65005.0,65004.0,0.80282607]
[1728906372378,0.013948,65005.0,65004.0,0.81182607]
[1728906372801,0.012948,65005.0,65004.0,0.80282607]
[1728906373250,0.013948,65005.0,65004.0,0.81182607]
[1728906374389,0.013948,65005.0,65004.0,0.85770113]
[1728906374837,0.013948,65005.0,65004.0,0.80982607]
[1728906376613,0.013948,65005.0,65004.0,0.81182607]
[1728906379768,0.23046962,65017.0,65016.0,0.153808]
[1728906379991,0.23046962,65017.0,65016.0,0.48052342]
[1728906380206,0.23046962,65017.0,65016.0,0.49061883]
[1728906380433,0.23046962,65017.0,65016.0,0.58243399]
[1728906380666,0.23046962,65024.0,65016.0,0.42862599]
[1728906380909,0.23046962,65024.0,65023.0,0.153791]
[1728906381605,0.0787,65027.0,65023.0,0.307583]
[1728906381854,0.0787,65027.0,65025.0,0.153786]
[1728906382576,0.00432183,65028.0,65026.0,0.153784]
[1728906382830,0.0784,65036.0,65026.0,0.15660384]
[1728906383067,0.001646,65041.0,65026.0,0.15660384]